[Event "December 12 Early 2023"]
[Site "https://www.chess.com"]
[Date "2023.12.12"]
[Round "4"]
[White "Dyulgerov, Volen"]
[Black "Umarov, Sabir"]
[Result "1-0"]
[Board "189"]
[TimeControl "180+1"]
[WhiteFideId "2918978"]
[BlackFideId "14200538"]
[WhiteElo "2407"]
[BlackElo "2313"]
[WhiteTeam "BUL"]
[BlackTeam "UZB"]
[WhiteClock "0:01:10"]
[BlackClock "0:00:00"]

1. e4 {[%clk 0:03:00]}  c6 {[%clk 0:02:59]} 2. d4 {[%clk 0:03:00]}  d5 {[%clk 0:02:59]} 3. Nd2 {[%clk 0:03:00]}  g6 {[%clk 0:02:59]} 4. h4 {[%clk 0:02:52]}  dxe4 {[%clk 0:02:56]} 5. Nxe4 {[%clk 0:02:50]}  Bg7 {[%clk 0:02:55]} 6. c3 {[%clk 0:02:39]}  h5 {[%clk 0:02:34]} 7. Ng5 {[%clk 0:02:28]}  Nf6 {[%clk 0:02:32]} 8. N1f3 {[%clk 0:02:10]}  Bg4 {[%clk 0:02:29]} 9. Qb3 {[%clk 0:02:09]}  O-O {[%clk 0:02:24]} 10. Ne5 {[%clk 0:02:04]}  e6 {[%clk 0:01:05]} 11. Qxb7 {[%clk 0:01:50]}  Nbd7 {[%clk 0:01:00]} 12. Nxc6 {[%clk 0:01:39]}  Qe8 {[%clk 0:00:49]} 13. Bb5 {[%clk 0:01:36]}  e5 {[%clk 0:00:43]} 14. O-O {[%clk 0:01:19]}  exd4 {[%clk 0:00:27]} 15. Bf4 {[%clk 0:01:11]}  Qe4 {[%clk 0:00:00]} 16. Nxe4 {[%clk 0:01:10]} 1-0

[Event "December 12 Early 2023"]
[Site "https://www.chess.com"]
[Date "2023.12.12"]
[Round "4"]
[White "Petrukhina, Olga"]
[Black "Kolmagorov, Alexey"]
[Result "1/2-1/2"]
[Board "192"]
[TimeControl "180+1"]
[WhiteFideId "13703935"]
[BlackFideId "34129402"]
[WhiteElo "2217"]
[BlackElo "2373"]
[WhiteTeam "KAZ"]
[BlackTeam "RUS"]
[WhiteClock "0:00:09"]
[BlackClock "0:00:08"]

1. d4 {[%clk 0:03:00]}  Nf6 {[%clk 0:03:00]} 2. c4 {[%clk 0:03:00]}  c5 {[%clk 0:03:00]} 3. d5 {[%clk 0:03:00]}  b5 {[%clk 0:03:01]} 4. cxb5 {[%clk 0:03:01]}  a6 {[%clk 0:03:02]} 5. b6 {[%clk 0:03:01]}  d6 {[%clk 0:03:00]} 6. Nc3 {[%clk 0:03:00]}  Nbd7 {[%clk 0:03:00]} 7. a4 {[%clk 0:02:59]}  Qxb6 {[%clk 0:02:59]} 8. a5 {[%clk 0:02:59]}  Qc7 {[%clk 0:02:56]} 9. e4 {[%clk 0:02:54]}  g6 {[%clk 0:02:57]} 10. Nf3 {[%clk 0:02:49]}  Bg7 {[%clk 0:02:57]} 11. Nd2 {[%clk 0:02:47]}  O-O {[%clk 0:02:56]} 12. Nc4 {[%clk 0:02:46]}  Rb8 {[%clk 0:02:41]} 13. Bd3 {[%clk 0:02:39]}  Qb7 {[%clk 0:02:19]} 14. O-O {[%clk 0:02:34]}  Qb3 {[%clk 0:02:17]} 15. Qe2 {[%clk 0:02:31]}  Ne8 {[%clk 0:02:10]} 16. Ra3 {[%clk 0:02:19]}  Qb7 {[%clk 0:02:06]} 17. Na4 {[%clk 0:02:04]}  Nc7 {[%clk 0:02:03]} 18. Nab6 {[%clk 0:02:00]}  Nb5 {[%clk 0:02:00]} 19. Ra1 {[%clk 0:01:51]}  Nd4 {[%clk 0:01:52]} 20. Qd1 {[%clk 0:01:49]}  Nxb6 {[%clk 0:01:43]} 21. axb6 {[%clk 0:01:42]}  Bd7 {[%clk 0:01:34]} 22. Rb1 {[%clk 0:01:17]}  Bb5 {[%clk 0:01:29]} 23. b3 {[%clk 0:01:17]}  Qd7 {[%clk 0:01:08]} 24. Bd2 {[%clk 0:01:07]}  Rb7 {[%clk 0:00:57]} 25. Ba5 {[%clk 0:01:00]}  e6 {[%clk 0:00:50]} 26. b4 {[%clk 0:00:41]}  exd5 {[%clk 0:00:42]} 27. exd5 {[%clk 0:00:40]}  Re8 {[%clk 0:00:28]} 28. h3 {[%clk 0:00:23]}  h5 {[%clk 0:00:26]} 29. Qd2 {[%clk 0:00:16]}  Kh7 {[%clk 0:00:18]} 30. Rfe1 {[%clk 0:00:12]}  Bh6 {[%clk 0:00:13]} 31. Qb2 {[%clk 0:00:09]}  Bg7 {[%clk 0:00:12]} 32. Qd2 {[%clk 0:00:09]}  Bh6 {[%clk 0:00:09]} 33. Qb2 {[%clk 0:00:08]}  Bg7 {[%clk 0:00:08]} 34. Qd2 {[%clk 0:00:09]} 1/2-1/2

[Event "December 12 Early 2023"]
[Site "https://www.chess.com"]
[Date "2023.12.12"]
[Round "4"]
[White "ArrestingPieces"]
[Black "De Arruda, Leandro Formes"]
[Result "1-0"]
[Board "195"]
[TimeControl "180+1"]
[BlackFideId "22722009"]
[WhiteElo "2529"]
[BlackElo "2320"]
[BlackTeam "BRA"]
[WhiteClock "0:01:38"]
[BlackClock "0:01:32"]

1. e4 {[%clk 0:03:00]}  e6 {[%clk 0:02:59]} 2. d4 {[%clk 0:03:00]}  d5 {[%clk 0:03:00]} 3. exd5 {[%clk 0:02:59]}  exd5 {[%clk 0:03:01]} 4. Nf3 {[%clk 0:03:00]}  Nf6 {[%clk 0:03:02]} 5. Bd3 {[%clk 0:03:00]}  Bd6 {[%clk 0:03:03]} 6. Qe2+ {[%clk 0:03:01]}  Qe7 {[%clk 0:03:02]} 7. Qxe7+ {[%clk 0:03:01]}  Bxe7 {[%clk 0:03:03]} 8. O-O {[%clk 0:03:01]}  O-O {[%clk 0:03:04]} 9. Bf4 {[%clk 0:03:01]}  c6 {[%clk 0:03:03]} 10. Re1 {[%clk 0:03:01]}  Bb4 {[%clk 0:03:00]} 11. c3 {[%clk 0:03:01]}  Ba5 {[%clk 0:03:01]} 12. b4 {[%clk 0:03:00]}  Bd8 {[%clk 0:03:00]} 13. a4 {[%clk 0:03:00]}  Be6 {[%clk 0:03:00]} 14. a5 {[%clk 0:02:59]}  a6 {[%clk 0:02:59]} 15. h3 {[%clk 0:02:59]}  Nbd7 {[%clk 0:02:59]} 16. Nbd2 {[%clk 0:02:57]}  Rc8 {[%clk 0:02:58]} 17. Nb3 {[%clk 0:02:57]}  Bc7 {[%clk 0:02:58]} 18. Bxc7 {[%clk 0:02:46]}  Rxc7 {[%clk 0:02:59]} 19. Ne5 {[%clk 0:02:47]}  Nxe5 {[%clk 0:02:59]} 20. Rxe5 {[%clk 0:02:42]}  Nd7 {[%clk 0:02:59]} 21. Ree1 {[%clk 0:02:41]}  g6 {[%clk 0:02:56]} 22. f4 {[%clk 0:02:40]}  Kg7 {[%clk 0:02:55]} 23. Kf2 {[%clk 0:02:36]}  h5 {[%clk 0:02:52]} 24. Kf3 {[%clk 0:02:35]}  Bf5 {[%clk 0:02:47]} 25. Bxf5 {[%clk 0:02:31]}  gxf5 {[%clk 0:02:48]} 26. Re7 {[%clk 0:02:28]}  Kf6 {[%clk 0:02:48]} 27. Rae1 {[%clk 0:02:27]}  Rg8 {[%clk 0:02:46]} 28. Nc5 {[%clk 0:02:25]}  Rd8 {[%clk 0:02:42]} 29. g3 {[%clk 0:02:08]}  Kg6 {[%clk 0:02:26]} 30. Ne6 {[%clk 0:01:53]}  Rcc8 {[%clk 0:02:04]} 31. Nxd8 {[%clk 0:01:48]}  Rxd8 {[%clk 0:02:05]} 32. Re8 {[%clk 0:01:48]}  Rxe8 {[%clk 0:01:59]} 33. Rxe8 {[%clk 0:01:48]}  h4 {[%clk 0:01:56]} 34. Re7 {[%clk 0:01:45]}  Nf6 {[%clk 0:01:55]} 35. Rxb7 {[%clk 0:01:43]}  hxg3 {[%clk 0:01:55]} 36. Kxg3 {[%clk 0:01:42]}  Ne4+ {[%clk 0:01:56]} 37. Kf3 {[%clk 0:01:42]}  Nxc3 {[%clk 0:01:55]} 38. Rb6 {[%clk 0:01:42]}  Nb5 {[%clk 0:01:54]} 39. Rxc6+ {[%clk 0:01:42]}  f6 {[%clk 0:01:54]} 40. Rxa6 {[%clk 0:01:43]}  Nxd4+ {[%clk 0:01:54]} 41. Kf2 {[%clk 0:01:43]}  Nc2 {[%clk 0:01:52]} 42. Rb6 {[%clk 0:01:43]}  d4 {[%clk 0:01:51]} 43. Ke2 {[%clk 0:01:42]}  Ne3 {[%clk 0:01:48]} 44. a6 {[%clk 0:01:39]}  Nd5 {[%clk 0:01:48]} 45. Rb7 {[%clk 0:01:40]}  Nxf4+ {[%clk 0:01:48]} 46. Kd2 {[%clk 0:01:40]}  Ne6 {[%clk 0:01:35]} 47. a7 {[%clk 0:01:39]}  Nd8 {[%clk 0:01:32]} 48. Rb6 {[%clk 0:01:38]} 1-0

[Event "December 12 Early 2023"]
[Site "https://www.chess.com"]
[Date "2023.12.12"]
[Round "4"]
[White "Dubreuil, Julien"]
[Black "Elgersma, Onno"]
[Result "1-0"]
[Board "196"]
[TimeControl "180+1"]
[WhiteFideId "621285"]
[BlackFideId "1053531"]
[WhiteElo "2317"]
[BlackElo "2525"]
[WhiteTeam "FRA"]
[BlackTeam "NED"]
[WhiteClock "0:00:04"]
[BlackClock "0:00:00"]

1. e4 {[%clk 0:03:00]}  d6 {[%clk 0:02:49]} 2. d4 {[%clk 0:02:55]}  Nf6 {[%clk 0:02:49]} 3. Nc3 {[%clk 0:02:55]}  g6 {[%clk 0:02:50]} 4. Bf4 {[%clk 0:02:55]}  Nc6 {[%clk 0:02:45]} 5. Qd2 {[%clk 0:02:54]}  Bg7 {[%clk 0:02:44]} 6. Nf3 {[%clk 0:02:50]}  Bg4 {[%clk 0:02:44]} 7. O-O-O {[%clk 0:02:45]}  Bxf3 {[%clk 0:02:36]} 8. gxf3 {[%clk 0:02:43]}  e5 {[%clk 0:02:36]} 9. dxe5 {[%clk 0:02:41]}  Nxe5 {[%clk 0:02:36]} 10. Bb5+ {[%clk 0:02:35]}  Nfd7 {[%clk 0:02:11]} 11. Qe3 {[%clk 0:02:25]}  O-O {[%clk 0:01:58]} 12. h4 {[%clk 0:02:16]}  h5 {[%clk 0:01:55]} 13. Rhg1 {[%clk 0:02:13]}  c6 {[%clk 0:01:46]} 14. Be2 {[%clk 0:02:12]}  Qxh4 {[%clk 0:01:37]} 15. Bg5 {[%clk 0:01:59]}  Qh2 {[%clk 0:01:37]} 16. Rh1 {[%clk 0:01:50]}  Qg2 {[%clk 0:01:25]} 17. Rdg1 {[%clk 0:01:49]}  Qxg5 {[%clk 0:01:21]} 18. Qxg5 {[%clk 0:01:46]}  d5 {[%clk 0:01:20]} 19. Rxh5 {[%clk 0:01:45]}  d4 {[%clk 0:01:20]} 20. f4 {[%clk 0:01:36]}  dxc3 {[%clk 0:01:16]} 21. fxe5 {[%clk 0:01:36]}  cxb2+ {[%clk 0:01:15]} 22. Kb1 {[%clk 0:01:36]}  Nxe5 {[%clk 0:01:11]} 23. f4 {[%clk 0:01:28]}  Nd7 {[%clk 0:01:11]} 24. Bc4 {[%clk 0:01:25]}  Nf6 {[%clk 0:00:48]} 25. Qxf6 {[%clk 0:01:11]}  Bxf6 {[%clk 0:00:48]} 26. Rxg6+ {[%clk 0:01:11]}  Bg7 {[%clk 0:00:41]} 27. Rhg5 {[%clk 0:01:12]}  b5 {[%clk 0:00:38]} 28. Rxg7+ {[%clk 0:01:10]}  Kh8 {[%clk 0:00:38]} 29. Bd3 {[%clk 0:00:41]}  a5 {[%clk 0:00:32]} 30. f5 {[%clk 0:00:40]}  Rg8 {[%clk 0:00:26]} 31. f6 {[%clk 0:00:38]}  Rxg7 {[%clk 0:00:20]} 32. Rxg7 {[%clk 0:00:37]}  a4 {[%clk 0:00:18]} 33. Kxb2 {[%clk 0:00:34]}  c5 {[%clk 0:00:14]} 34. e5 {[%clk 0:00:33]}  c4 {[%clk 0:00:13]} 35. Be4 {[%clk 0:00:31]}  Rd8 {[%clk 0:00:12]} 36. Rh7+ {[%clk 0:00:29]}  Kg8 {[%clk 0:00:12]} 37. Bg6 {[%clk 0:00:28]}  fxg6 {[%clk 0:00:07]} 38. Rg7+ {[%clk 0:00:28]}  Kh8 {[%clk 0:00:07]} 39. e6 {[%clk 0:00:28]}  b4 {[%clk 0:00:07]} 40. a3 {[%clk 0:00:26]}  c3+ {[%clk 0:00:06]} 41. Ka2 {[%clk 0:00:20]}  b3+ {[%clk 0:00:07]} 42. cxb3 {[%clk 0:00:20]}  Rd2+ {[%clk 0:00:07]} 43. Kb1 {[%clk 0:00:20]}  axb3 {[%clk 0:00:07]} 44. Rd7 {[%clk 0:00:13]}  Re2 {[%clk 0:00:05]} 45. Rd8+ {[%clk 0:00:13]}  Kh7 {[%clk 0:00:05]} 46. Rd1 {[%clk 0:00:12]}  Rxe6 {[%clk 0:00:04]} 47. Rh1+ {[%clk 0:00:10]}  Kg8 {[%clk 0:00:05]} 48. a4 {[%clk 0:00:10]}  Rxf6 {[%clk 0:00:05]} 49. Rg1 {[%clk 0:00:09]}  Ra6 {[%clk 0:00:04]} 50. a5 {[%clk 0:00:10]}  Rxa5 {[%clk 0:00:05]} 51. Rxg6+ {[%clk 0:00:10]}  Kf7 {[%clk 0:00:05]} 52. Rg3 {[%clk 0:00:10]}  c2+ {[%clk 0:00:05]} 53. Kb2 {[%clk 0:00:10]}  Ra2+ {[%clk 0:00:06]} 54. Kxb3 {[%clk 0:00:10]}  c1=Q {[%clk 0:00:06]} 55. Kxa2 {[%clk 0:00:10]}  Qc4+ {[%clk 0:00:07]} 56. Rb3 {[%clk 0:00:11]}  Qc2+ {[%clk 0:00:07]} 57. Ka3 {[%clk 0:00:11]}  Ke6 {[%clk 0:00:07]} 58. Rb4 {[%clk 0:00:11]}  Qc5 {[%clk 0:00:07]} 59. Ka4 {[%clk 0:00:10]}  Kd6 {[%clk 0:00:07]} 60. Kb3 {[%clk 0:00:08]}  Qe3+ {[%clk 0:00:06]} 61. Kc4 {[%clk 0:00:07]}  Kc6 {[%clk 0:00:05]} 62. Ra4 {[%clk 0:00:06]}  Qe4+ {[%clk 0:00:04]} 63. Kb3 {[%clk 0:00:06]}  Qd3+ {[%clk 0:00:04]} 64. Kb4 {[%clk 0:00:06]}  Qc2 {[%clk 0:00:03]} 65. Ka3 {[%clk 0:00:06]}  Kc5 {[%clk 0:00:00]} 66. Ra7 {[%clk 0:00:04]} 1-0

[Event "December 12 Early 2023"]
[Site "https://www.chess.com"]
[Date "2023.12.12"]
[Round "4"]
[White "Zhuk, Valeriy"]
[Black "Sai Han Thiha"]
[Result "0-1"]
[Board "197"]
[TimeControl "180+1"]
[WhiteFideId "24151254"]
[BlackFideId "13012290"]
[WhiteElo "2312"]
[BlackElo "2506"]
[WhiteTeam "RUS"]
[BlackTeam "MYA"]
[WhiteClock "0:00:00"]
[BlackClock "0:00:30"]

1. Nf3 {[%clk 0:03:00]}  Nf6 {[%clk 0:03:00]} 2. c4 {[%clk 0:03:00]}  g6 {[%clk 0:03:00]} 3. Nc3 {[%clk 0:02:59]}  Bg7 {[%clk 0:03:01]} 4. e4 {[%clk 0:02:59]}  O-O {[%clk 0:03:02]} 5. d4 {[%clk 0:02:59]}  d6 {[%clk 0:03:02]} 6. Be2 {[%clk 0:03:00]}  Bg4 {[%clk 0:03:03]} 7. h3 {[%clk 0:02:56]}  Bxf3 {[%clk 0:03:00]} 8. Bxf3 {[%clk 0:02:57]}  Nfd7 {[%clk 0:02:19]} 9. Be3 {[%clk 0:02:52]}  e5 {[%clk 0:02:17]} 10. d5 {[%clk 0:02:52]}  a5 {[%clk 0:02:14]} 11. a3 {[%clk 0:02:42]}  Na6 {[%clk 0:02:03]} 12. Rb1 {[%clk 0:02:42]}  f5 {[%clk 0:01:57]} 13. b4 {[%clk 0:02:35]}  f4 {[%clk 0:01:34]} 14. Bd2 {[%clk 0:02:35]}  h5 {[%clk 0:01:30]} 15. O-O {[%clk 0:02:20]}  Qe7 {[%clk 0:01:23]} 16. Qe2 {[%clk 0:02:02]}  c6 {[%clk 0:01:22]} 17. dxc6 {[%clk 0:01:48]}  bxc6 {[%clk 0:01:23]} 18. b5 {[%clk 0:01:31]}  cxb5 {[%clk 0:01:23]} 19. Nd5 {[%clk 0:01:30]}  Qd8 {[%clk 0:01:21]} 20. cxb5 {[%clk 0:01:27]}  Nac5 {[%clk 0:01:21]} 21. b6 {[%clk 0:01:17]}  Ne6 {[%clk 0:01:16]} 22. Qc4 {[%clk 0:00:56]}  Kh7 {[%clk 0:00:50]} 23. b7 {[%clk 0:00:28]}  Rb8 {[%clk 0:00:48]} 24. Rb5 {[%clk 0:00:25]}  Nd4 {[%clk 0:00:46]} 25. Bxa5 {[%clk 0:00:24]}  Qg5 {[%clk 0:00:45]} 26. Kh2 {[%clk 0:00:17]}  Nc5 {[%clk 0:00:39]} 27. Rxc5 {[%clk 0:00:15]}  dxc5 {[%clk 0:00:37]} 28. Rb1 {[%clk 0:00:16]}  Rf7 {[%clk 0:00:34]} 29. Qxc5 {[%clk 0:00:14]}  Rfxb7 {[%clk 0:00:32]} 30. Rxb7 {[%clk 0:00:14]}  Rxb7 {[%clk 0:00:33]} 31. Bc7 {[%clk 0:00:00]}  Rb2 {[%clk 0:00:30]} 0-1

[Event "December 12 Early 2023"]
[Site "https://www.chess.com"]
[Date "2023.12.12"]
[Round "4"]
[White "Baches Garcia, Guillermo"]
[Black "Schut, Han"]
[Result "1-0"]
[Board "199"]
[TimeControl "180+1"]
[WhiteFideId "2209764"]
[BlackFideId "1005561"]
[WhiteElo "2485"]
[BlackElo "2297"]
[WhiteTeam "ESP"]
[BlackTeam "NED"]
[WhiteClock "0:01:01"]
[BlackClock "0:00:05"]

1. d4 {[%clk 0:03:00]}  Nf6 {[%clk 0:02:58]} 2. Nf3 {[%clk 0:03:01]}  g6 {[%clk 0:02:58]} 3. Bg5 {[%clk 0:03:01]}  Bg7 {[%clk 0:02:58]} 4. Nbd2 {[%clk 0:03:01]}  d5 {[%clk 0:02:58]} 5. e3 {[%clk 0:03:01]}  O-O {[%clk 0:02:57]} 6. Be2 {[%clk 0:03:01]}  b6 {[%clk 0:02:58]} 7. O-O {[%clk 0:03:01]}  Bb7 {[%clk 0:02:59]} 8. c3 {[%clk 0:03:00]}  Ne4 {[%clk 0:02:59]} 9. Bf4 {[%clk 0:02:57]}  Nd7 {[%clk 0:02:57]} 10. h3 {[%clk 0:02:54]}  Rc8 {[%clk 0:02:53]} 11. a4 {[%clk 0:02:48]}  f6 {[%clk 0:02:44]} 12. a5 {[%clk 0:02:37]}  e5 {[%clk 0:02:44]} 13. Bh2 {[%clk 0:02:37]}  Nxd2 {[%clk 0:02:43]} 14. Nxd2 {[%clk 0:02:31]}  c5 {[%clk 0:02:28]} 15. Qb3 {[%clk 0:02:27]}  Kh8 {[%clk 0:02:18]} 16. axb6 {[%clk 0:02:16]}  axb6 {[%clk 0:02:19]} 17. Ra7 {[%clk 0:02:16]}  Bc6 {[%clk 0:02:07]} 18. Bb5 {[%clk 0:02:09]}  Nb8 {[%clk 0:01:40]} 19. Nf3 {[%clk 0:01:54]}  Re8 {[%clk 0:01:25]} 20. Rfa1 {[%clk 0:01:46]}  Bxb5 {[%clk 0:00:37]} 21. Qxb5 {[%clk 0:01:46]}  cxd4 {[%clk 0:00:26]} 22. Rd7 {[%clk 0:01:34]}  Qxd7 {[%clk 0:00:24]} 23. Qxd7 {[%clk 0:01:30]}  Nxd7 {[%clk 0:00:25]} 24. exd4 {[%clk 0:01:30]}  e4 {[%clk 0:00:24]} 25. Nd2 {[%clk 0:01:29]}  Ra8 {[%clk 0:00:22]} 26. Re1 {[%clk 0:01:28]}  Ra2 {[%clk 0:00:22]} 27. Rb1 {[%clk 0:01:28]}  b5 {[%clk 0:00:21]} 28. Nf1 {[%clk 0:01:28]}  Nb6 {[%clk 0:00:21]} 29. Ne3 {[%clk 0:01:27]}  Rd8 {[%clk 0:00:20]} 30. Bc7 {[%clk 0:01:27]}  Rda8 {[%clk 0:00:16]} 31. Bxb6 {[%clk 0:01:27]}  Ra1 {[%clk 0:00:17]} 32. Rxa1 {[%clk 0:01:26]}  Rxa1+ {[%clk 0:00:18]} 33. Kh2 {[%clk 0:01:26]}  Rb1 {[%clk 0:00:18]} 34. b4 {[%clk 0:01:26]}  f5 {[%clk 0:00:16]} 35. Nxd5 {[%clk 0:01:25]}  g5 {[%clk 0:00:17]} 36. Nc7 {[%clk 0:01:20]}  f4 {[%clk 0:00:16]} 37. d5 {[%clk 0:01:16]}  Bxc3 {[%clk 0:00:15]} 38. Nxb5 {[%clk 0:01:15]}  Rxb4 {[%clk 0:00:15]} 39. Nxc3 {[%clk 0:01:08]}  Rxb6 {[%clk 0:00:16]} 40. Nxe4 {[%clk 0:01:09]}  Kg7 {[%clk 0:00:15]} 41. Nxg5 {[%clk 0:01:06]}  Rb2 {[%clk 0:00:13]} 42. Ne6+ {[%clk 0:01:05]}  Kf6 {[%clk 0:00:13]} 43. Nxf4 {[%clk 0:01:05]}  Ke5 {[%clk 0:00:13]} 44. Kg3 {[%clk 0:01:01]}  Rb3+ {[%clk 0:00:11]} 45. f3 {[%clk 0:01:01]}  Rb4 {[%clk 0:00:05]} 46. Nd3+ {[%clk 0:01:01]} 1-0

[Event "December 12 Early 2023"]
[Site "https://www.chess.com"]
[Date "2023.12.12"]
[Round "4"]
[White "Rodriguez Santiago, Jaime"]
[Black "Turzo, Attila"]
[Result "1/2-1/2"]
[Board "200"]
[TimeControl "180+1"]
[WhiteFideId "3100898"]
[BlackFideId "704954"]
[WhiteElo "2271"]
[BlackElo "2479"]
[WhiteTeam "PUR"]
[BlackTeam "HUN"]
[WhiteClock "0:00:10"]
[BlackClock "0:00:11"]

1. d4 {[%clk 0:03:00]}  Nf6 {[%clk 0:02:53]} 2. c4 {[%clk 0:03:00]}  g6 {[%clk 0:02:52]} 3. Nc3 {[%clk 0:02:58]}  d5 {[%clk 0:02:52]} 4. Nf3 {[%clk 0:02:56]}  Bg7 {[%clk 0:02:52]} 5. Bg5 {[%clk 0:02:55]}  Ne4 {[%clk 0:02:48]} 6. cxd5 {[%clk 0:02:52]}  Nxg5 {[%clk 0:02:44]} 7. Nxg5 {[%clk 0:02:52]}  e6 {[%clk 0:02:45]} 8. Qd2 {[%clk 0:02:52]}  exd5 {[%clk 0:02:45]} 9. Qe3+ {[%clk 0:02:52]}  Kf8 {[%clk 0:02:44]} 10. h4 {[%clk 0:02:51]}  h6 {[%clk 0:02:42]} 11. Nf3 {[%clk 0:02:46]}  c6 {[%clk 0:02:42]} 12. Qf4 {[%clk 0:02:39]}  Qf6 {[%clk 0:02:39]} 13. Qc7 {[%clk 0:02:31]}  Na6 {[%clk 0:02:38]} 14. Qg3 {[%clk 0:02:13]}  Nb4 {[%clk 0:02:34]} 15. O-O-O {[%clk 0:01:40]}  Bf5 {[%clk 0:01:51]} 16. a3 {[%clk 0:01:34]}  Na6 {[%clk 0:01:44]} 17. e3 {[%clk 0:01:29]}  b5 {[%clk 0:01:39]} 18. Bd3 {[%clk 0:01:24]}  Bxd3 {[%clk 0:01:37]} 19. Rxd3 {[%clk 0:01:23]}  b4 {[%clk 0:01:38]} 20. axb4 {[%clk 0:01:22]}  Nxb4 {[%clk 0:01:38]} 21. Rd2 {[%clk 0:01:22]}  Qe7 {[%clk 0:01:30]} 22. Re1 {[%clk 0:00:58]}  Kg8 {[%clk 0:01:22]} 23. e4 {[%clk 0:00:55]}  dxe4 {[%clk 0:01:18]} 24. Rxe4 {[%clk 0:00:53]}  Qd8 {[%clk 0:01:09]} 25. h5 {[%clk 0:00:50]}  g5 {[%clk 0:01:08]} 26. Ne5 {[%clk 0:00:35]}  Rc8 {[%clk 0:01:01]} 27. Qf3 {[%clk 0:00:30]}  Bxe5 {[%clk 0:00:53]} 28. dxe5 {[%clk 0:00:30]}  Qe7 {[%clk 0:00:48]} 29. e6 {[%clk 0:00:25]}  fxe6 {[%clk 0:00:44]} 30. Rde2 {[%clk 0:00:25]}  Rf8 {[%clk 0:00:39]} 31. Qh3 {[%clk 0:00:23]}  Rh7 {[%clk 0:00:33]} 32. Rxe6 {[%clk 0:00:23]}  Qd8 {[%clk 0:00:27]} 33. Rg6+ {[%clk 0:00:14]}  Kh8 {[%clk 0:00:27]} 34. Rd2 {[%clk 0:00:14]}  Qe7 {[%clk 0:00:23]} 35. Ne4 {[%clk 0:00:15]}  Nd5 {[%clk 0:00:19]} 36. Qd3 {[%clk 0:00:14]}  Rd8 {[%clk 0:00:16]} 37. Qd4+ {[%clk 0:00:14]}  Rg7 {[%clk 0:00:14]} 38. Rxh6+ {[%clk 0:00:13]}  Kg8 {[%clk 0:00:15]} 39. Nf6+ {[%clk 0:00:11]}  Kf7 {[%clk 0:00:08]} 40. Nxd5 {[%clk 0:00:08]}  Rxd5 {[%clk 0:00:08]} 41. Qc4 {[%clk 0:00:08]}  Qd7 {[%clk 0:00:05]} 42. Rxd5 {[%clk 0:00:07]}  Qxd5 {[%clk 0:00:06]} 43. Qxd5+ {[%clk 0:00:07]}  cxd5 {[%clk 0:00:07]} 44. Rd6 {[%clk 0:00:07]}  Rh7 {[%clk 0:00:05]} 45. g4 {[%clk 0:00:06]}  Ke7 {[%clk 0:00:05]} 46. Rxd5 {[%clk 0:00:06]}  Kf6 {[%clk 0:00:06]} 47. Rf5+ {[%clk 0:00:06]}  Ke6 {[%clk 0:00:07]} 48. Rxg5 {[%clk 0:00:07]}  Re7 {[%clk 0:00:08]} 49. Rf5 {[%clk 0:00:07]}  Rg7 {[%clk 0:00:08]} 50. Kc2 {[%clk 0:00:07]}  Rc7+ {[%clk 0:00:08]} 51. Kd2 {[%clk 0:00:07]}  Rb7 {[%clk 0:00:08]} 52. b3 {[%clk 0:00:06]}  Rxb3 {[%clk 0:00:08]} 53. h6 {[%clk 0:00:07]}  Rh3 {[%clk 0:00:07]} 54. Rh5 {[%clk 0:00:07]}  Rxh5 {[%clk 0:00:07]} 55. gxh5 {[%clk 0:00:07]}  Kf6 {[%clk 0:00:07]} 56. f4 {[%clk 0:00:08]}  Kf7 {[%clk 0:00:06]} 57. Kc3 {[%clk 0:00:08]}  Kg8 {[%clk 0:00:07]} 58. Kb4 {[%clk 0:00:09]}  Kh7 {[%clk 0:00:08]} 59. Ka5 {[%clk 0:00:10]}  Kxh6 {[%clk 0:00:08]} 60. Ka6 {[%clk 0:00:11]}  Kxh5 {[%clk 0:00:09]} 61. Kxa7 {[%clk 0:00:12]}  Kg6 {[%clk 0:00:10]} 62. Kb6 {[%clk 0:00:11]}  Kf5 {[%clk 0:00:10]} 63. Kc5 {[%clk 0:00:10]}  Kxf4 {[%clk 0:00:11]} 1/2-1/2

[Event "December 12 Early 2023"]
[Site "https://www.chess.com"]
[Date "2023.12.12"]
[Round "4"]
[White "Minina, Veronika"]
[Black "Shukhman, Anna"]
[Result "0-1"]
[Board "201"]
[TimeControl "180+1"]
[WhiteFideId "4174780"]
[BlackFideId "54180058"]
[WhiteElo "2242"]
[BlackElo "2475"]
[WhiteTeam "RUS"]
[BlackTeam "FID"]
[WhiteClock "0:00:00"]
[BlackClock "0:01:14"]

1. Nf3 {[%clk 0:03:00]}  c5 {[%clk 0:02:59]} 2. g3 {[%clk 0:02:59]}  Nf6 {[%clk 0:02:59]} 3. Bg2 {[%clk 0:02:59]}  g6 {[%clk 0:02:59]} 4. O-O {[%clk 0:03:00]}  Bg7 {[%clk 0:02:59]} 5. c4 {[%clk 0:02:58]}  O-O {[%clk 0:02:59]} 6. Nc3 {[%clk 0:02:28]}  d5 {[%clk 0:02:55]} 7. cxd5 {[%clk 0:02:22]}  Nxd5 {[%clk 0:02:56]} 8. Ng5 {[%clk 0:02:10]}  Nxc3 {[%clk 0:02:50]} 9. bxc3 {[%clk 0:02:11]}  h6 {[%clk 0:02:39]} 10. Ne4 {[%clk 0:02:00]}  Qc7 {[%clk 0:02:38]} 11. Ba3 {[%clk 0:01:57]}  c4 {[%clk 0:02:22]} 12. Rb1 {[%clk 0:01:47]}  Nc6 {[%clk 0:02:14]} 13. Qa4 {[%clk 0:01:12]}  Ne5 {[%clk 0:01:49]} 14. Nc5 {[%clk 0:00:46]}  Rb8 {[%clk 0:01:39]} 15. Qb4 {[%clk 0:00:40]}  b6 {[%clk 0:01:36]} 16. Ne4 {[%clk 0:00:35]}  Re8 {[%clk 0:01:33]} 17. f4 {[%clk 0:00:34]}  Ng4 {[%clk 0:01:30]} 18. h3 {[%clk 0:00:31]}  Nf6 {[%clk 0:01:30]} 19. Nxf6+ {[%clk 0:00:30]}  exf6 {[%clk 0:01:29]} 20. e4 {[%clk 0:00:29]}  Bf8 {[%clk 0:01:27]} 21. Qb2 {[%clk 0:00:25]}  Bb7 {[%clk 0:01:23]} 22. Bxf8 {[%clk 0:00:22]}  Rxf8 {[%clk 0:01:23]} 23. Rbe1 {[%clk 0:00:17]}  Rbd8 {[%clk 0:01:22]} 24. e5 {[%clk 0:00:08]}  Qc5+ {[%clk 0:01:20]} 25. Kh2 {[%clk 0:00:06]}  Bxg2 {[%clk 0:01:20]} 26. Kxg2 {[%clk 0:00:07]}  Qd5+ {[%clk 0:01:20]} 27. Kg1 {[%clk 0:00:06]}  fxe5 {[%clk 0:01:19]} 28. Rxe5 {[%clk 0:00:04]}  Qxd2 {[%clk 0:01:19]} 29. Qxd2 {[%clk 0:00:02]}  Rxd2 {[%clk 0:01:20]} 30. f5 {[%clk 0:00:02]}  g5 {[%clk 0:01:15]} 31. f6 {[%clk 0:00:00]}  Rd3 {[%clk 0:01:14]} 0-1